bitfinex-derivatives/quotes_ETHF0:USTF0_20251216
["timestamp","ask_amount","ask_price","bid_price","bid_amount"]
[1765910762867,0.83839,2957.5,2957.4,0.80047726]
[1765910763074,0.00507726,2957.9,2957.4,4.80367726]
[1765910763274,0.00507726,2957.9,2957.8,3.9865]
[1765910763671,0.00507726,2957.9,2957.8,4.7652]
[1765910765570,0.0033808,2958.5,2958.4,1.479]
[1765910765969,3.1871,2958.4,2958.3,3.2078]
[1765910766179,3.35616,2958.1,2958.0,3.2078]
[1765910766479,0.16906,2958.1,2958.0,3.9257]
[1765910766672,1.76936,2958.1,2958.0,3.9257]
[1765910767676,1.76936,2958.1,2957.7,3.2078]
[1765910767677,0.9848,2958.0,2957.7,3.2078]
[1765910771477,3.1871,2957.8,2957.7,3.2078]
[1765910772283,0.16907,2957.9,2957.8,1.2416]
[1765910772580,1.6003,2957.8,2957.7,3.8286]
[1765910772767,0.16907,2957.9,2957.8,1.2092]
[1765910772973,0.9848,2958.0,2957.9,1.2092]
[1765910774683,0.16905,2958.3,2958.2,0.6046]
[1765910775377,1.76935,2958.3,2958.2,0.6046]
[1765910775680,0.9881808,2958.5,2958.0,3.2078]
[1765910775681,3.35616,2958.1,2958.0,3.2078]
[1765910775882,4.1959808,2958.5,2957.4,0.00507726]
[1765910775883,3.35618,2957.8,2957.7,3.2078]
[1765910776486,1.76938,2957.8,2957.7,3.7643]
[1765910776878,0.16908,2957.8,2957.7,3.7643]
[1765910777078,0.16908,2957.8,2957.7,4.3049]
[1765910777882,3.35618,2957.8,2957.7,3.2078]
[1765910778472,4.34099,2957.5,2957.4,0.00507726]
[1765910778781,7.54879,2957.5,2957.4,0.00507726]
[1765910779084,3.35623,2956.9,2956.8,3.2078]
[1765910779280,3.35623,2956.9,2956.4,0.00309248]
[1765910779281,4.34105,2956.5,2956.4,0.00309248]
[1765910779687,0.9848,2956.0,2955.6,6.2652]
[1765910779881,1.15398,2956.0,2955.6,6.2652]
[1765910780184,1.15398,2956.0,2955.6,4.7527]
[1765910780583,0.172929,2956.0,2955.9,1.5449]
[1765910780888,1.6003,2955.7,2955.6,0.00273471]
[1765910781088,1.6003,2955.7,2955.6,1.54763471]
[1765910781278,1.6003,2955.7,2955.6,4.75543471]
[1765910781481,1.157729,2956.0,2955.6,4.75543471]
[1765910781676,1.157729,2956.0,2955.6,1.54763471]
[1765910781881,1.157729,2956.0,2955.6,4.75543471]
[1765910782383,1.157729,2956.0,2955.9,3.0574]
[1765910782384,0.003749,2956.0,2955.9,3.0574]
[1765910782688,0.003749,2956.0,2955.9,6.2652]
[1765910783280,40.96915,2956.5,2956.4,3.0574]
[1765910783579,40.96915,2956.5,2955.9,3.2078]
[1765910783580,3.1871,2956.3,2955.9,3.2078]
[1765910783886,3.35626,2956.3,2955.9,3.2078]
[1765910784278,3.35986183,2956.3,2955.9,3.2078]
[1765910786089,0.17276183,2956.3,2956.2,3.0574]
[1765910787493,0.17276183,2956.3,2956.2,6.2652]
[1765910787987,3.35986183,2956.3,2955.9,3.2078]
[1765910788185,1.6003,2955.7,2955.6,3.21053471]
[1765910788393,0.16919,2955.8,2955.7,3.0574]
[1765910788591,3.35629,2955.8,2955.7,1.5449]
[1765910789093,1.76949,2955.8,2955.7,1.5449]
[1765910789988,0.00360183,2956.3,2955.7,3.0574]
[1765910790188,0.00360183,2956.3,2955.9,3.2078]
[1765910790686,4.1719,2956.0,2955.9,3.2078]
[1765910790891,1.6003,2955.7,2955.6,1.54763471]
[1765910791094,1.15398,2956.0,2955.6,3.06013471]
[1765910791293,4.34108,2956.0,2955.9,1.5449]
[1765910791885,4.34108,2956.0,2955.6,0.00273471]
[1765910792901,2.75428,2956.0,2955.9,1.5449]
[1765910793399,4.34108,2956.0,2955.9,1.5449]
[1765910793889,3.2292,2955.7,2955.6,0.00273471]
[1765910795195,3.3984,2955.7,2955.6,3.471e-05]
[1765910795393,3.2418,2955.2,2955.1,3.2078]
[1765910795591,3.41103,2955.2,2955.1,3.2078]
[1765910795790,44.21103,2955.2,2955.1,3.2078]
[1765910796396,44.21103,2955.2,2955.1,3.2120774]
[1765910796593,44.21103,2955.2,2955.1,0.0042774]
[1765910796898,4.36854,2955.0,2954.9,0.00507726]
[1765910797597,4.36854,2955.0,2954.2,3.2078]
[1765910797598,3.2418,2954.3,2954.2,3.2078]
[1765910797900,3.41108,2954.3,2954.2,0.00353277]
[1765910798597,3.41108,2954.3,2954.2,3.277e-05]
[1765910798798,44.21108,2954.3,2954.2,3.277e-05]
[1765910800805,3.41109,2954.1,2954.0,0.00507726]
[1765910800996,3.2418,2953.7,2953.6,3.2078]
[1765910801192,3.2418,2953.4,2953.3,3.2078]
[1765910802011,0.00387087,2953.4,2953.3,6.39420964]
[1765910802199,3.24567087,2953.4,2953.3,3.21200964]
[1765910802903,3.24567087,2953.4,2953.3,0.00420964]
[1765910802904,3.41500087,2953.4,2953.3,0.00420964]
[1765910803909,44.21500087,2953.4,2953.3,0.00420964]
[1765910804900,3.2418,2952.8,2952.7,3.2078]
[1765910805412,1.12685,2953.0,2952.7,6.39]
[1765910805708,1.5812,2952.8,2952.7,4.8232]
[1765910805907,3.2418,2952.8,2952.7,3.21191795]
[1765910807906,3.41116,2952.8,2952.7,3.21191795]
[1765910808303,44.74044041,2952.8,2952.7,3.21191795]
[1765910808508,47.94824041,2952.8,2952.7,1.795e-05]
[1765910813508,63.88624041,2952.8,2952.7,1.795e-05]
[1765910814803,66.22322205,2952.8,2952.7,1.795e-05]
[1765910815108,66.22322205,2952.8,2951.5,4.1588]
[1765910815109,0.9575,2952.5,2951.5,3.2078]
[1765910815307,3.2078,2952.2,2951.5,3.2078]
[1765910815509,0.9575,2952.0,2951.5,3.2078]
[1765910815709,0.9575,2952.0,2951.8,3.1822]
[1765910815710,0.52928041,2951.9,2951.8,3.1822]
[1765910815910,0.52928041,2951.9,2951.8,6.39396745]
[1765910819322,2.11048041,2951.9,2951.8,6.39396745]
[1765910819524,0.52928041,2951.9,2951.8,6.39396745]
[1765910819720,3.77108041,2951.9,2951.8,4.82716745]
[1765910820021,7.14829041,2951.9,2951.8,0.00396745]
[1765910820222,9.21445068,2951.9,2951.8,0.00396745]
[1765910820410,9.21445068,2951.9,2950.2,0.16951]
[1765910820411,3.2418,2951.2,2950.8,3.2078]
[1765910820716,3.2418,2951.2,2950.5,3.2078]
[1765910820717,3.2418,2950.6,2950.5,3.2078]
[1765910820922,3.77108041,2950.6,2950.5,3.2078]
[1765910821120,0.52928041,2950.6,2950.5,6.39]
[1765910821317,3.77445516,2950.6,2950.5,0.00275278]
[1765910821519,0.53265516,2950.6,2950.5,3.18495278]
[1765910821720,2.11385516,2950.6,2950.5,0.00275278]
[1765910822027,3.77445516,2950.6,2950.5,0.00275278]
[1765910822226,3.2418,2950.4,2950.3,0.00338447]
[1765910822518,3.2418,2950.4,2949.9,3.2078]
[1765910822519,6.97888041,2950.4,2949.9,3.2078]
[1765910822721,0.52928041,2950.3,2949.5,0.9138]
[1765910822918,0.00337475,2950.6,2950.5,3.1822]
[1765910823215,0.53301965,2950.6,2950.5,3.18543546]
[1765910823419,41.33301965,2950.6,2950.5,3.18543546]
[1765910823719,41.33301965,2950.6,2950.5,0.00323546]
[1765910824117,41.33301965,2950.6,2950.5,3.02443546]
[1765910824312,41.33301965,2950.6,2950.5,1.61863546]
[1765910824622,41.33301965,2950.6,2950.5,6.23223546]
[1765910824811,41.33301965,2950.6,2950.5,3.02443546]
[1765910825015,0.53301965,2950.6,2950.5,3.02443546]
[1765910825221,2.00771965,2950.6,2950.5,1.61863546]
[1765910825609,0.53301965,2950.6,2950.5,6.23223546]
[1765910826010,0.53301965,2950.6,2950.5,7.12903546]
[1765910826210,3.2078,2951.0,2950.9,1.471]
[1765910826412,3.02366027,2952.0,2951.4,1.471]
[1765910826413,4.1653,2951.5,2951.4,1.471]
[1765910826620,5.64,2951.5,2951.4,1.471]
[1765910826816,7.1391,2951.5,2950.8,3.2078]
[1765910827318,2.9738,2951.2,2951.1,3.2078]
[1765910827518,0.00507726,2951.4,2951.1,6.0846]
[1765910827717,0.00507726,2951.4,2951.1,2.8768]
[1765910828520,0.00507726,2951.4,2951.3,2.8768]
[1765910829815,0.00507726,2951.4,2951.3,6.0846]
[1765910830017,0.00507726,2951.4,2951.3,2.8768]
[1765910831920,0.00245391,2951.5,2951.4,2.8768]
[1765910833423,1.4747,2951.9,2951.8,1.471]
[1765910833625,2.9738,2951.9,2951.3,3.2078]
[1765910834023,43.7738,2951.9,2951.3,3.2078]
[1765910834413,43.78216064,2951.9,2951.3,3.2078]
[1765910834619,43.78216064,2951.9,2951.0,0.4877]
[1765910834620,40.80836064,2951.9,2951.8,2.8768]
[1765910835014,0.00836064,2951.9,2951.8,2.8768]
[1765910835218,1.48306064,2951.9,2951.8,2.8768]
[1765910836927,0.00836064,2951.9,2951.8,2.8768]
[1765910841428,0.48480126,2952.6,2952.5,2.8768]
[1765910841623,2.9738,2952.6,2952.1,3.2078]
[1765910841928,2.303,2952.5,2952.4,1.471]
[1765910842233,3.8021,2952.5,2952.4,1.471]
[1765910842427,3.80575649,2952.5,2952.4,1.471]
[1765910843329,2.9738,2952.2,2951.8,3.2078]
[1765910843524,1.4747,2951.9,2951.8,4.6788]
[1765910844331,1.4747,2951.9,2951.8,6.0846]
[1765910844728,40.8,2952.4,2951.8,6.0846]
[1765910844729,40.8,2952.4,2952.3,2.8768]
[1765910844928,40.8,2952.4,2952.3,1.471]
[1765910845127,1.4747,2952.4,2952.3,1.471]
[1765910845428,2.9738,2952.4,2952.3,1.471]
[1765910846228,1.4747,2952.2,2952.1,2.8768]
[1765910846430,41.63195649,2952.5,2952.4,1.471]
[1765910846634,0.00365649,2952.5,2952.4,2.8768]
[1765910846835,0.00365649,2952.5,2952.4,6.0846]
[1765910847336,0.00507726,2952.7,2952.6,2.8768]
[1765910848534,0.8283,2953.5,2952.6,0.00384566]
[1765910848728,1.4747,2953.0,2952.9,4.6788]
[1765910848927,4.0361,2953.5,2952.9,6.0846]
[1765910849237,4.0361,2953.5,2953.4,2.8768]
[1765910849433,4.039839,2953.5,2953.4,2.8768]
[1765910849629,3.805839,2953.5,2953.2,0.00507726]
[1765910850338,3.805839,2953.5,2953.4,1.471]
[1765910850541,2.306739,2953.5,2953.4,1.471]
[1765910850737,2.9738,2953.3,2953.2,0.00507726]
[1765910853240,0.003739,2953.5,2953.4,2.8768]
[1765910853428,4.0361,2954.5,2953.6,2.8768]
[1765910853734,0.8283,2954.5,2953.9,3.2078]
[1765910853941,40.8,2954.4,2953.9,3.2078]
[1765910854233,2.2843,2954.0,2953.6,3.2078]
[1765910854438,3.2078,2953.9,2953.2,0.00507726]
[1765910854643,1.3532,2953.3,2953.2,1.34507726]
[1765910855735,2.6199,2953.3,2953.2,0.00507726]
[1765910856236,2.78923,2953.3,2953.2,0.00142077]
[1765910856842,43.58923,2953.3,2953.2,0.00142077]
[1765910858737,2.6199,2953.3,2953.2,0.00142077]
[1765910858942,2.6199,2953.3,2953.2,1.34142077]
[1765910858943,1.3532,2953.3,2953.2,1.34142077]
[1765910859138,0.7605,2953.5,2953.2,1.34142077]
[1765910859338,41.5605,2953.5,2953.2,1.34142077]
[1765910860339,41.5605,2953.5,2953.4,1.34]
[1765910860732,41.5605,2953.5,2953.2,0.00142077]
[1765910861745,41.5605,2953.5,2953.4,1.34]
[1765910861946,41.5605,2953.5,2953.2,0.00142077]
[1765910862241,2.6199,2953.3,2953.2,0.00142077]
[1765910862540,1.3532,2953.3,2953.2,1.34142077]
[1765910863340,41.5605,2953.5,2953.2,1.34142077]
[1765910863341,41.5605,2953.5,2953.4,1.34]
[1765910863649,41.5605,2953.5,2953.4,2.719]
[1765910865133,2.1137,2953.5,2953.4,2.719]
[1765910865340,2.1137,2953.5,2953.4,1.34]
[1765910865542,40.8,2953.6,2953.5,1.34]
[1765910865744,40.8,2953.6,2953.5,2.719]
[1765910866750,40.8,2953.6,2953.5,1.34]
[1765910869151,2.6199,2953.6,2953.5,1.34]
[1765910870051,1.3532,2953.4,2953.3,4.5478]
[1765910870345,2.6199,2953.4,2953.3,3.2078]
[1765910871145,2.6199,2953.4,2953.3,4.5478]
[1765910874451,2.6199,2953.4,2953.3,5.9268]
[1765910875556,2.1137,2953.5,2953.4,2.719]
[1765910877854,3.3804,2953.5,2953.4,2.719]
[1765910878455,3.3804,2953.5,2953.4,1.34]
[1765910880559,2.1137,2953.5,2953.4,2.719]
[1765910880759,3.3804,2953.5,2953.4,2.719]
[1765910880961,3.3804,2953.5,2953.4,1.34]
[1765910881259,3.3804,2953.5,2953.4,2.719]
[1765910881461,3.3804,2953.5,2953.4,1.34]
[1765910881948,2.6199,2952.7,2952.5,3.2078]
[1765910882149,5.8277,2952.7,2952.0,2.37636496]
[1765910882353,3.3804,2952.0,2951.9,2.719]
[1765910882760,3.3804,2952.0,2951.9,1.34]
[1765910883158,2.6199,2951.9,2951.8,3.2078]
[1765910883358,0.00439619,2951.9,2951.8,5.93054993]
[1765910883554,2.62429619,2951.9,2951.8,5.93054993]
[1765910884161,1.35759619,2951.9,2951.8,5.93054993]
[1765910885363,0.00439619,2951.9,2951.8,11.93054993]
[1765910886254,1.14589619,2951.9,2951.8,5.93054993]
[1765910886452,2.35319619,2951.9,2951.8,3.21154993]
[1765910886657,0.00439619,2951.9,2951.8,5.62044993]
[1765910886854,2.35319619,2951.9,2951.8,4.39054993]
[1765910887257,2.35319619,2951.9,2951.8,3.21154993]
[1765910887965,0.00439619,2951.9,2951.8,5.62044993]
[1765910888265,1.14589619,2951.9,2951.8,5.62044993]
[1765910888661,2.35319619,2951.9,2951.8,4.39054993]
[1765910889663,0.00439619,2951.9,2951.8,5.62044993]
[1765910890766,1.14589619,2951.9,2951.8,5.62044993]
[1765910891467,0.00439619,2951.9,2951.8,5.62044993]
[1765910891669,2.35319619,2951.9,2951.8,3.21154993]
[1765910891856,2.52260619,2951.9,2951.8,3.21154993]
[1765910892062,17.23630619,2951.9,2951.8,5.62044993]
[1765910892366,0.00439619,2951.9,2951.8,5.62044993]
[1765910895969,0.00507726,2952.2,2952.1,2.4089]
[1765910896164,0.00507726,2952.2,2952.1,5.6167]
[1765910896862,0.0079681,2952.2,2952.1,5.6167]
[1765910899268,0.16936,2952.9,2952.8,2.4089]
[1765910899571,41.5605,2953.5,2952.1,3.2078]
[1765910899572,2.51813,2953.4,2953.3,1.179]
[1765910899770,1.31083,2953.4,2953.3,2.4089]
[1765910900362,1.1415,2953.2,2953.1,4.3868]
[1765910900568,2.3488,2953.2,2953.1,1.179]
[1765910901472,1.1415,2953.2,2953.1,4.3868]
[1765910901772,1.1415,2953.2,2953.1,5.6167]
[1765910902268,2.3488,2953.2,2953.1,1.179]
[1765910902769,0.00381491,2953.4,2953.3,2.4089]
[1765910907972,2.3488,2953.2,2953.1,3.2078]
[1765910908768,2.3488,2953.2,2953.1,4.3868]
[1765910908964,2.3488,2953.2,2953.1,3.2078]
[1765910909378,2.3488,2953.2,2953.1,4.3868]
[1765910909582,2.3488,2953.2,2953.1,1.179]
[1765910909977,2.3488,2953.2,2952.8,3.2078]
[1765910910180,2.3488,2953.2,2953.1,1.179]
[1765910910379,2.3488,2953.2,2952.8,3.2078]
[1765910910878,1.1415,2952.9,2952.8,5.6167]
[1765910911070,1.8934,2953.0,2952.9,2.4089]
[1765910912088,0.7519,2953.0,2952.9,2.4089]
[1765910914181,3.0235,2953.0,2952.9,1.179]
[1765910914680,3.0235,2953.0,2952.9,2.2477]
[1765910917783,1.8934,2953.0,2952.9,2.2477]
[1765910918176,2.9504,2953.0,2952.9,2.2477]
[1765910918371,0.7519,2953.0,2952.9,2.2477]
[1765910918583,0.00381491,2953.4,2953.3,2.1975]
[1765910918886,0.00381491,2953.4,2953.3,5.4053]
[1765910925485,0.00381491,2953.4,2953.3,2.1975]
[1765910926689,0.00381491,2953.4,2953.0,3.2078]
[1765910926690,2.14121491,2953.4,2953.0,3.2078]
[1765910927073,2.14121491,2953.4,2953.3,4.3027]
[1765910927280,0.00381491,2953.4,2953.3,5.4053]
[1765910928772,2.14121491,2953.4,2953.3,5.4053]
[1765910929287,1.08421491,2953.4,2953.3,5.4053]
[1765910930885,2.14121491,2953.4,2953.3,5.4053]
[1765910931074,2.14121491,2953.4,2953.3,4.3027]
[1765910931287,2.14121491,2953.4,2953.3,5.4053]
[1765910932484,1.08421491,2953.4,2953.3,5.4053]
[1765910932682,0.00381491,2953.4,2953.3,5.4053]
[1765910933489,0.16927,2954.4,2953.5,2.6057]
[1765910933681,0.16927,2954.4,2954.3,2.1975]
[1765910933983,2.30667,2954.4,2954.3,1.0949]
[1765910934186,2.1374,2953.9,2953.8,5.4053]
[1765910934377,1.0804,2953.9,2953.8,5.4053]
[1765910934686,1.08356048,2953.9,2953.8,5.40835048]
[1765910934891,0.00316048,2953.9,2953.8,5.40835048]
[1765910935380,2.14056048,2953.9,2953.8,1.09795048]
[1765910935585,2.14056048,2953.9,2953.8,0.00305048]
[1765910937881,2.30986048,2953.9,2953.8,0.00305048]
[1765910938887,2.1374,2953.7,2953.6,0.00507726]
[1765910939279,42.9374,2953.7,2953.6,0.00507726]
[1765910939788,2.1374,2953.7,2953.6,0.00747239]
[1765910940188,2.1374,2953.7,2953.6,2.20497239]
[1765910940390,2.1374,2953.7,2953.6,0.00747239]
[1765910940590,2.1374,2953.7,2953.6,2.20497239]
[1765910940791,40.8,2953.8,2953.7,2.1975]
[1765910941388,40.8,2953.8,2953.7,1.0949]
[1765910941590,2.1374,2953.7,2953.6,1.10237239]
[1765910941781,2.30671,2953.7,2953.6,1.10237239]
[1765910941977,2.30673,2953.3,2953.2,3.2078]
[1765910942185,2.783,2953.0,2952.9,4.3027]
[1765910942381,2.783,2953.0,2952.9,3.2078]
[1765910942580,40.8,2953.2,2953.1,2.1975]
[1765910942887,40.8,2953.2,2953.1,2.19997615]
[1765910943183,2.1374,2953.2,2953.1,2.19997615]
[1765910943782,2.0508,2953.2,2953.1,2.19997615]
[1765910944382,1.0804,2953.2,2953.1,2.19997615]
[1765910946289,2.0508,2953.2,2953.1,2.19997615]
[1765910947297,2.0508,2953.2,2953.1,1.09737615]
[1765910948190,2.22014,2953.2,2953.1,0.00247615]
[1765910949496,3.59666348,2953.2,2953.1,0.00247615]
[1765910951491,2.22014,2953.2,2953.1,0.00247615]
[1765910952100,4.28494064,2953.2,2953.1,0.00247615]
[1765910955798,2.22014,2953.2,2953.1,0.95847615]
[1765910956099,18.12814,2953.2,2953.1,0.00247615]
[1765910958905,0.16934,2953.2,2953.1,1.97897615]
[1765910959205,0.00507726,2953.4,2953.3,1.9765]
[1765910959406,1.95317726,2953.4,2953.3,1.9765]
[1765910959612,1.95317726,2953.4,2953.3,0.956]
[1765910959797,0.00316048,2953.9,2953.8,1.9765]
[1765910959992,3.2078,2954.7,2954.6,1.9765]
[1765910960198,2.147,2954.8,2954.7,1.9765]
[1765910960392,2.5937,2955.0,2954.9,1.9765]
[1765910960598,1.6233,2955.0,2954.9,1.9765]
[1765910961006,2.59680799,2955.0,2954.9,1.9765]
[1765910961204,1.9481,2954.8,2954.7,1.98157726]
[1765910961505,1.9481,2954.8,2954.7,0.00507726]
[1765910965208,1.9481,2953.9,2953.8,4.1638]
[1765910966400,0.9777,2953.9,2953.8,5.1843]
[1765910967909,1.5935,2954.0,2953.9,1.9765]
[1765910968608,0.00507726,2954.1,2954.0,1.9765]
[1765910969007,0.98277726,2954.1,2954.0,1.9765]
[1765910969203,1.95317726,2954.1,2954.0,0.956]
[1765910969612,0.98277726,2954.1,2954.0,1.9765]
[1765910970408,0.00507726,2954.1,2954.0,1.9765]
[1765910971512,0.98277726,2954.1,2954.0,1.9765]
[1765910973016,1.95317726,2954.1,2954.0,1.9765]
[1765910974418,0.98277726,2954.1,2954.0,1.9765]
[1765910975617,1.85257726,2954.1,2954.0,1.9765]
[1765910978110,1.7508,2953.9,2953.8,5.078]
[1765910978514,0.872,2953.9,2953.8,5.078]
[1765910978715,1.3948,2954.0,2953.9,1.8702]
[1765910979025,1.7508,2953.9,2953.8,4.1427]
[1765910979214,1.7508,2953.9,2953.8,5.078]
[1765910979523,2.77036834,2954.0,2953.9,1.8702]
[1765910982324,3.64916834,2954.0,2953.9,1.8702]
[1765910982625,1.7508,2953.9,2953.8,4.1427]
[1765910983024,1.7508,2953.9,2953.8,5.078]
[1765910983522,0.872,2953.9,2953.8,5.078]
[1765910984226,2.24756834,2953.9,2953.8,5.078]
[1765910985623,1.89836834,2954.0,2953.9,1.8702]
[1765910985926,2.77036834,2954.0,2953.9,1.8702]
[1765910986220,3.64916834,2954.0,2953.9,1.8702]
[1765910988321,3.64916834,2954.0,2953.9,0.9349]
[1765910988521,2.77036834,2954.0,2953.9,1.8702]
[1765910988722,3.64916834,2954.0,2953.9,1.8702]
[1765910990420,3.64916834,2954.0,2953.9,0.9349]
[1765910990730,1.7508,2953.9,2953.8,3.2078]
[1765910991326,1.7508,2953.9,2953.8,4.1427]
[1765910992726,1.7508,2953.9,2953.8,3.2078]
[1765910992932,1.7508,2953.9,2953.8,4.1427]
[1765910994133,1.7508,2953.9,2953.8,3.2078]
[1765910995332,1.7508,2953.9,2953.8,5.078]
[1765910996435,0.69209,2954.0,2953.9,1.8702]
[1765910996740,2.06765834,2954.0,2953.9,1.8702]
[1765910997031,1.7508,2953.9,2953.8,3.2078]
[1765910997231,1.7508,2953.9,2953.8,5.078]
[1765910997433,3.12636834,2953.9,2953.8,5.078]
[1765910998035,3.12636834,2953.9,2953.8,4.1427]
[1765910998533,1.56409,2954.0,2953.9,1.8702]
[1765910998734,3.81845834,2954.0,2953.9,1.8702]
[1765910999230,0.6158,2954.5,2953.8,3.2078]
[1765910999231,1.68994799,2955.0,2954.9,1.8702]
[1765910999430,2.39950799,2955.0,2954.9,1.8702]
[1765910999635,0.00310799,2955.0,2954.9,5.078]
[1765911000031,3.12636834,2955.9,2955.8,1.866]
[1765911000329,1.7508,2955.7,2955.6,0.00507726]
[1765911000529,3.12636834,2955.7,2955.6,0.00507726]
[1765911000837,1.89836834,2956.0,2955.9,1.8578]
[1765911001027,2.77355586,2956.0,2955.9,1.8606546]
[1765911001224,3.65235586,2956.0,2955.9,1.8606546]
[1765911001429,2.27678752,2956.0,2955.9,1.8606546]
[1765911001829,2.27678752,2956.0,2955.9,0.9358546]
[1765911002735,2.27678752,2956.0,2955.9,1.8520546]
[1765911003034,2.27678752,2956.0,2955.9,0.9358546]
[1765911003234,2.27678752,2956.0,2955.9,0.0028546]
[1765911003739,0.00318752,2956.0,2955.9,1.8180546]
[1765911004740,2.06518752,2956.0,2955.9,0.0028546]
[1765911006137,2.06518752,2956.0,2955.9,0.7997546]
[1765911006532,2.06518752,2956.0,2955.9,0.0028546]
[1765911008640,2.06518752,2956.0,2955.9,0.7997546]
[1765911008843,0.47858752,2956.0,2955.9,1.5723546]
[1765911009540,0.00318752,2956.0,2955.9,1.5723546]
[1765911013454,0.00318752,2956.0,2955.6,0.00507726]
[1765911013455,1.5866,2955.7,2955.6,0.00507726]
[1765911014651,1.5866,2955.7,2955.6,0.00848144]
[1765911016054,1.5866,2955.7,2955.6,0.80538144]
[1765911016351,0.00318752,2956.0,2955.9,1.5695]
[1765911016746,0.00318752,2956.0,2955.9,4.7773]
[1765911024946,1.75571,2957.3,2956.0,0.1762]
[1765911025153,0.7853,2956.8,2956.7,4.6528]
[1765911025346,2.062,2957.0,2956.9,1.445]
[1765911025547,1.2607,2957.0,2956.9,1.445]
[1765911025743,0.4754,2957.0,2956.9,1.445]
[1765911025948,2.06500166,2957.0,2956.9,0.7225]
[1765911026148,2.06500166,2957.0,2956.9,1.4376]
[1765911026551,0.47840166,2957.0,2956.9,1.4376]
[1765911026954,0.00300166,2957.0,2956.9,1.4376]
[1765911030043,0.4754,2958.0,2957.9,1.4138]
[1765911030248,2.062,2958.0,2957.9,3.2078]
[1765911030748,2.062,2958.0,2957.9,3.9147]
[1765911031144,2.06576082,2958.0,2957.9,0.71007609]
[1765911031350,2.06576082,2958.0,2957.9,1.41697609]
[1765911031756,1.26446082,2958.0,2957.9,1.41697609]
[1765911031958,2.06576082,2958.0,2957.9,0.71007609]
[1765911032953,2.23483082,2958.0,2957.9,0.00317609]
[1765911034954,1.71128,2957.8,2957.7,0.00507726]
[1765911035161,1.71128,2957.7,2957.6,3.2078]
[1765911035360,1.5422,2957.2,2957.1,3.9229]
[1765911035557,1.5422,2957.2,2957.1,3.2078]
[1765911035761,1.5422,2957.2,2957.1,4.638]
[1765911036147,1.5422,2957.2,2957.1,4.64080466]
[1765911036348,1.5422,2957.2,2957.1,3.92570466]
[1765911036855,1.5422,2957.2,2957.1,3.21060466]
[1765911038362,1.5422,2957.2,2957.1,3.92570466]
[1765911038565,1.5422,2957.2,2957.1,3.21060466]
[1765911039162,1.5422,2957.2,2957.1,3.92570466]
[1765911039361,1.71637726,2957.4,2957.3,1.4302]
[1765911039768,1.5422,2957.2,2957.1,3.92570466]
[1765911040475,1.5422,2957.2,2957.1,3.21060466]
[1765911040866,1.71131,2957.2,2957.1,3.21060466]
[1765911041778,1.71131,2957.2,2957.1,0.00280466]
[1765911042877,1.71131,2957.2,2957.1,1.43300466]
[1765911043173,1.71131,2957.2,2957.1,0.71790466]
[1765911043567,1.71131,2957.2,2957.1,0.00280466]
[1765911043975,0.7549,2957.0,2956.9,0.00507726]
[1765911044164,2.17512,2957.0,2956.9,0.00507726]
[1765911044370,0.7549,2956.1,2956.0,2.0007]
[1765911044575,0.16915,2956.5,2956.0,5.2085]
[1765911044877,0.7549,2956.1,2956.0,2.0007]
[1765911045085,0.7549,2956.1,2956.0,2.00384556]
[1765911045570,1.5422,2956.1,2956.0,2.00384556]
[1765911045773,1.5422,2956.1,2956.0,0.00314556]
[1765911049272,1.5422,2956.1,2956.0,0.78154556]
[1765911049472,3.9627,2956.3,2956.2,1.5526]
[1765911050078,4.75,2956.3,2956.2,1.5526]
[1765911051078,3.9627,2956.3,2956.2,1.5526]
[1765911051578,4.75,2956.3,2956.2,0.7784]
[1765911052083,4.75,2956.3,2956.2,1.5526]
[1765911052482,4.75,2956.3,2956.2,0.7784]
[1765911052787,1.5422,2956.1,2956.0,2.00384556]
[1765911053679,0.7549,2956.1,2956.0,2.00384556]
[1765911053873,1.5422,2956.1,2956.0,2.00384556]
[1765911054475,1.5422,2956.1,2956.0,1.22964556]
[1765911054779,1.5422,2956.1,2956.0,2.00384556]
[1765911055481,1.5422,2956.1,2956.0,0.78154556]
[1765911055786,1.5422,2956.1,2956.0,0.00314556]
[1765911056085,1.71137,2956.1,2956.0,0.00314556]
[1765911056784,1.71139,2955.9,2955.8,2.282e-05]
[1765911056977,1.71139,2955.9,2955.0,2.0007]
[1765911056978,1.71144,2955.1,2955.0,2.0007]
[1765911057185,0.16924,2955.1,2955.0,2.0007]
[1765911057684,40.8,2955.4,2955.3,1.5526]
[1765911057882,1.54727726,2955.6,2955.5,2.0007]
[1765911058186,0.00775635,2955.6,2955.5,2.0007]
[1765911060276,3.2078,2956.5,2956.4,1.5526]
[1765911060479,0.7549,2956.6,2956.5,2.0007]
[1765911060681,1.5422,2956.6,2956.5,2.0007]
[1765911061387,1.5465072,2956.6,2956.5,2.0007]
[1765911061881,0.0043072,2956.6,2956.5,2.0007]
[1765911062281,0.17420726,2956.8,2956.5,8.0007]
[1765911062282,0.00507726,2956.8,2956.5,8.0007]
[1765911062483,3.9627,2957.7,2957.6,1.5526]
[1765911062691,3.2078,2957.7,2957.6,1.5526]
[1765911062890,4.75,2957.7,2957.6,0.7784]
[1765911063086,1.5422,2957.7,2957.6,0.7784]
[1765911063481,1.54538585,2957.7,2957.6,0.78266084]
[1765911063687,1.54538585,2957.7,2957.6,0.00426084]
[1765911063890,0.00318585,2957.7,2957.6,1.58846084]
[1765911064289,0.00507726,2957.9,2957.6,1.58846084]
[1765911064589,0.8239,2958.6,2958.5,2.0774]
[1765911064784,4.0317,2958.8,2958.7,0.7673]
[1765911064978,4.16222,2958.8,2958.5,0.4932]
[1765911065183,1.6093,2958.6,2958.5,2.0774]
[1765911065387,1.61200124,2958.6,2958.5,1.2605]
[1765911065993,1.61200124,2958.6,2958.0,3.701]
[1765911066884,0.8239,2958.1,2958.0,2.0774]
[1765911067090,0.00270124,2958.6,2958.0,2.0774]
[1765911067287,0.82660124,2958.6,2958.5,1.5842]